[Event "Early-Titled-Tuesday-Blitz-October-24-2023"]
[Site "Chess.com"]
[Date "2023.10.24"]
[Round "3"]
[White "Mystery2007"]
[Black "HamedWafa4"]
[Result "1-0"]
[WhiteElo "2472"]
[BlackElo "2613"]
[TimeControl "180+1"]
[EndTime "8:24:19 PDT"]
[Termination "Mystery2007 won by resignation"]

1. b3 {[%clk 0:03:00.9]} 1... e5 {[%clk 0:02:58.6]} 2. Bb2 {[%clk 0:03:00.5]}
2... Nc6 {[%clk 0:02:58.9]} 3. e3 {[%clk 0:03:00.4]} 3... d5 {[%clk 0:02:58.8]}
4. Bb5 {[%clk 0:02:52.3]} 4... Bd6 {[%clk 0:02:58.5]} 5. Nf3 {[%clk 0:02:50.4]}
5... f6 {[%clk 0:02:57.1]} 6. c4 {[%clk 0:02:48.1]} 6... Ne7 {[%clk 0:02:50.2]}
7. cxd5 {[%clk 0:02:46.5]} 7... Nxd5 {[%clk 0:02:50.2]} 8. d4 {[%clk 0:02:39.1]}
8... e4 {[%clk 0:02:48.7]} 9. Nfd2 {[%clk 0:02:37.4]} 9... f5 {[%clk 0:02:49]}
10. Nc3 {[%clk 0:02:32.3]} 10... Nxc3 {[%clk 0:02:47.3]} 11. Bxc3 {[%clk
0:02:33.2]} 11... O-O {[%clk 0:02:47]} 12. Qc2 {[%clk 0:02:17.5]} 12... Ne7
{[%clk 0:02:40.6]} 13. Bc4+ {[%clk 0:02:16.3]} 13... Kh8 {[%clk 0:02:40.2]} 14.
h4 {[%clk 0:02:13]} 14... c6 {[%clk 0:02:39.6]} 15. a4 {[%clk 0:02:09.7]} 15...
Nd5 {[%clk 0:02:38.7]} 16. Bxd5 {[%clk 0:01:55.7]} 16... cxd5 {[%clk 0:02:38.6]}
17. g3 {[%clk 0:01:56.4]} 17... b6 {[%clk 0:02:34.8]} 18. O-O-O {[%clk
0:01:49.9]} 18... Ba6 {[%clk 0:02:19.7]} 19. Nb1 {[%clk 0:01:46.2]} 19... Rc8
{[%clk 0:02:15.5]} 20. Kb2 {[%clk 0:01:44.6]} 20... Qd7 {[%clk 0:02:02.5]} 21.
h5 {[%clk 0:01:38.4]} 21... Qb5 {[%clk 0:02:02.2]} 22. axb5 {[%clk 0:01:37.3]}
1-0

[Event "Early-Titled-Tuesday-Blitz-October-24-2023"]
[Site "Chess.com"]
[Date "2023.10.24"]
[Round "3"]
[White "KononenkoD"]
[Black "Matols"]
[Result "1-0"]
[WhiteElo "2595"]
[BlackElo "2415"]
[TimeControl "180+1"]
[EndTime "8:24:48 PDT"]
[Termination "KononenkoD won by checkmate"]

1. e4 {[%clk 0:03:00.9]} 1... e6 {[%clk 0:03:00.2]} 2. d4 {[%clk 0:03:00.1]}
2... d5 {[%clk 0:03:00.9]} 3. Nc3 {[%clk 0:03:00.3]} 3... Nf6 {[%clk 0:03:00.3]}
4. Bg5 {[%clk 0:02:59.2]} 4... Bb4 {[%clk 0:02:59.6]} 5. e5 {[%clk 0:02:58.6]}
5... h6 {[%clk 0:03:00.3]} 6. exf6 {[%clk 0:02:59.1]} 6... hxg5 {[%clk
0:03:00.9]} 7. fxg7 {[%clk 0:02:59.6]} 7... Rg8 {[%clk 0:03:01.1]} 8. h4 {[%clk
0:02:56.2]} 8... gxh4 {[%clk 0:02:56.4]} 9. Qh5 {[%clk 0:02:54]} 9... Qf6 {[%clk
0:02:55.4]} 10. Nf3 {[%clk 0:02:42.3]} 10... Bxc3+ {[%clk 0:02:51.1]} 11. bxc3
{[%clk 0:02:41.3]} 11... Qxg7 {[%clk 0:02:50.6]} 12. Qxh4 {[%clk 0:02:35.5]}
12... Bd7 {[%clk 0:02:36.4]} 13. O-O-O {[%clk 0:02:34.1]} 13... c5 {[%clk
0:02:13.1]} 14. Re1 {[%clk 0:01:54.4]} 14... cxd4 {[%clk 0:02:06.1]} 15. Nxd4
{[%clk 0:01:42.1]} 15... Nc6 {[%clk 0:02:00.2]} 16. Nf5 {[%clk 0:01:35.5]} 16...
Qxc3 {[%clk 0:01:41.5]} 17. Bb5 {[%clk 0:00:59.2]} 17... Nb4 {[%clk 0:01:13.4]}
18. Qe7# {[%clk 0:00:56.8]} 1-0

[Event "Early-Titled-Tuesday-Blitz-October-24-2023"]
[Site "Chess.com"]
[Date "2023.10.24"]
[Round "3"]
[White "Apocalyps999"]
[Black "HeroRubiksCube"]
[Result "0-1"]
[WhiteElo "2297"]
[BlackElo "2538"]
[TimeControl "180+1"]
[EndTime "8:24:52 PDT"]
[Termination "HeroRubiksCube won by resignation"]

1. e4 {[%clk 0:03:00.9]} 1... e6 {[%clk 0:02:59.1]} 2. d4 {[%clk 0:02:58]} 2...
d5 {[%clk 0:02:59]} 3. Nd2 {[%clk 0:02:57.6]} 3... c5 {[%clk 0:02:58.8]} 4. exd5
{[%clk 0:02:57.4]} 4... Qxd5 {[%clk 0:02:59.7]} 5. Ngf3 {[%clk 0:02:57.4]} 5...
cxd4 {[%clk 0:03:00]} 6. Bc4 {[%clk 0:02:56.8]} 6... Qd6 {[%clk 0:03:00.3]} 7.
O-O {[%clk 0:02:56]} 7... Nf6 {[%clk 0:03:00.8]} 8. Nb3 {[%clk 0:02:55.6]} 8...
Nc6 {[%clk 0:03:01.4]} 9. Nbxd4 {[%clk 0:02:55]} 9... Nxd4 {[%clk 0:03:02.3]}
10. Nxd4 {[%clk 0:02:46]} 10... a6 {[%clk 0:03:02.4]} 11. c3 {[%clk 0:02:45.1]}
11... Qc7 {[%clk 0:03:01.8]} 12. Be2 {[%clk 0:02:42.9]} 12... Bd6 {[%clk
0:03:01.9]} 13. h3 {[%clk 0:02:39.3]} 13... Bd7 {[%clk 0:03:02.2]} 14. Bf3
{[%clk 0:02:39.4]} 14... h6 {[%clk 0:02:52.8]} 15. Qb3 {[%clk 0:02:38.8]} 15...
Rb8 {[%clk 0:02:45.3]} 16. Be3 {[%clk 0:02:35.3]} 16... O-O {[%clk 0:02:43.1]}
17. Rad1 {[%clk 0:02:32.5]} 17... b5 {[%clk 0:02:40.4]} 18. Qc2 {[%clk 0:02:03]}
18... Rfd8 {[%clk 0:02:33.9]} 19. Rfe1 {[%clk 0:02:00.1]} 19... Rbc8 {[%clk
0:02:31.7]} 20. Qd2 {[%clk 0:01:50.2]} 20... Bf8 {[%clk 0:02:06.3]} 21. Qc1
{[%clk 0:01:43.8]} 21... e5 {[%clk 0:02:01]} 22. Nb3 {[%clk 0:01:31.8]} 22...
Be6 {[%clk 0:01:55.8]} 23. Rxd8 {[%clk 0:01:20.3]} 23... Rxd8 {[%clk 0:01:56.7]}
24. Rd1 {[%clk 0:01:19.3]} 24... e4 {[%clk 0:01:52.4]} 25. Bc5 {[%clk
0:01:20.2]} 25... exf3 {[%clk 0:01:44.1]} 26. Rxd8 {[%clk 0:01:18.4]} 26... Qxd8
{[%clk 0:01:42]} 27. Bxf8 {[%clk 0:01:16.9]} 27... Kxf8 {[%clk 0:01:34.1]} 28.
Nd4 {[%clk 0:01:17.8]} 28... fxg2 {[%clk 0:01:30.7]} 29. Kxg2 {[%clk 0:01:17.6]}
29... Qd5+ {[%clk 0:01:30.2]} 30. f3 {[%clk 0:01:16.4]} 30... Qg5+ {[%clk
0:01:28.4]} 0-1

[Event "Early-Titled-Tuesday-Blitz-October-24-2023"]
[Site "Chess.com"]
[Date "2023.10.24"]
[Round "3"]
[White "johnmez"]
[Black "Manukyan_Artak"]
[Result "1/2-1/2"]
[WhiteElo "2308"]
[BlackElo "2407"]
[TimeControl "180+1"]
[EndTime "8:24:56 PDT"]
[Termination "Game drawn by agreement"]

1. d4 {[%clk 0:03:00.9]} 1... d5 {[%clk 0:02:59.2]} 2. Bf4 {[%clk 0:03:01]} 2...
c5 {[%clk 0:02:58.2]} 3. c3 {[%clk 0:02:51.3]} 3... e6 {[%clk 0:02:51.5]} 4. e3
{[%clk 0:02:48.4]} 4... Qb6 {[%clk 0:02:51.1]} 5. Qc2 {[%clk 0:02:43.1]} 5... f5
{[%clk 0:02:49.9]} 6. Nf3 {[%clk 0:02:37.1]} 6... Nf6 {[%clk 0:02:49.7]} 7. Bd3
{[%clk 0:02:34.7]} 7... Nc6 {[%clk 0:02:46.9]} 8. O-O {[%clk 0:02:33.1]} 8...
Bd7 {[%clk 0:02:42.5]} 9. Nbd2 {[%clk 0:02:28.6]} 9... Rc8 {[%clk 0:02:41.4]}
10. Ne5 {[%clk 0:02:14.5]} 10... Nxe5 {[%clk 0:02:37.4]} 11. Bxe5 {[%clk
0:02:08.6]} 11... Be7 {[%clk 0:02:35.5]} 12. Nf3 {[%clk 0:02:04.1]} 12... O-O
{[%clk 0:02:34.8]} 13. Rad1 {[%clk 0:01:50.9]} 13... Bb5 {[%clk 0:02:27.5]} 14.
Bg3 {[%clk 0:01:37.6]} 14... Bxd3 {[%clk 0:02:23.8]} 15. Qxd3 {[%clk 0:01:38.5]}
15... Ne4 {[%clk 0:02:12.3]} 16. Ne5 {[%clk 0:01:17]} 16... Rfd8 {[%clk
0:02:03.2]} 17. f3 {[%clk 0:01:11.7]} 17... Nxg3 {[%clk 0:01:58.2]} 18. hxg3
{[%clk 0:01:11.6]} 18... Bf6 {[%clk 0:01:52.2]} 19. f4 {[%clk 0:01:00.9]} 19...
Bxe5 {[%clk 0:01:50]} 20. fxe5 {[%clk 0:00:56.7]} 20... cxd4 {[%clk 0:01:46.8]}
21. cxd4 {[%clk 0:00:46.9]} 21... Qxb2 {[%clk 0:01:43.3]} 22. Rb1 {[%clk
0:00:46.6]} 22... Qc3 {[%clk 0:01:33.7]} 23. Qxc3 {[%clk 0:00:46.2]} 23... Rxc3
{[%clk 0:01:30.8]} 24. Rxb7 {[%clk 0:00:47.1]} 1/2-1/2

[Event "Early-Titled-Tuesday-Blitz-October-24-2023"]
[Site "Chess.com"]
[Date "2023.10.24"]
[Round "3"]
[White "luksona14"]
[Black "sari07"]
[Result "1-0"]
[WhiteElo "2605"]
[BlackElo "2257"]
[TimeControl "180+1"]
[EndTime "8:24:58 PDT"]
[Termination "luksona14 won by resignation"]

1. d4 {[%clk 0:02:59.9]} 1... Nf6 {[%clk 0:02:59.3]} 2. c4 {[%clk 0:03:00.3]}
2... g6 {[%clk 0:02:59.9]} 3. Nc3 {[%clk 0:03:00.8]} 3... Bg7 {[%clk 0:03:00.5]}
4. e4 {[%clk 0:03:01.5]} 4... O-O {[%clk 0:03:00.3]} 5. Be2 {[%clk 0:03:01.7]}
5... c5 {[%clk 0:02:59.8]} 6. d5 {[%clk 0:03:01.4]} 6... e6 {[%clk 0:02:59.7]}
7. Nf3 {[%clk 0:02:56.7]} 7... exd5 {[%clk 0:02:59.6]} 8. cxd5 {[%clk
0:02:57.6]} 8... Re8 {[%clk 0:02:56.3]} 9. Nd2 {[%clk 0:02:53.3]} 9... d6 {[%clk
0:02:51.5]} 10. O-O {[%clk 0:02:52]} 10... a6 {[%clk 0:02:49.7]} 11. a4 {[%clk
0:02:51.3]} 11... Nbd7 {[%clk 0:02:44.8]} 12. Nc4 {[%clk 0:02:48]} 12... Ne5
{[%clk 0:02:42.9]} 13. Nxe5 {[%clk 0:02:47.4]} 13... Rxe5 {[%clk 0:02:43.4]} 14.
f3 {[%clk 0:02:47.9]} 14... Re8 {[%clk 0:02:29.4]} 15. Bg5 {[%clk 0:02:45.5]}
15... h6 {[%clk 0:02:26.1]} 16. Be3 {[%clk 0:02:45.2]} 16... Kh7 {[%clk
0:02:16.6]} 17. Qd2 {[%clk 0:02:43.8]} 17... Bd7 {[%clk 0:02:00.6]} 18. a5
{[%clk 0:02:40.1]} 18... Rb8 {[%clk 0:01:59.5]} 19. Ra2 {[%clk 0:02:39.7]} 19...
Nh5 {[%clk 0:01:52.8]} 20. Rb1 {[%clk 0:02:37]} 20... Be5 {[%clk 0:01:40.4]} 21.
f4 {[%clk 0:02:30.5]} 21... Bxc3 {[%clk 0:01:38.4]} 22. bxc3 {[%clk 0:02:30.5]}
22... Rxe4 {[%clk 0:01:35.5]} 23. Bf3 {[%clk 0:02:24.5]} 23... Re8 {[%clk
0:01:25.3]} 24. Bxh5 {[%clk 0:02:22.6]} 24... gxh5 {[%clk 0:01:24.9]} 25. Qd3+
{[%clk 0:02:19.1]} 25... f5 {[%clk 0:01:18.4]} 26. Rab2 {[%clk 0:02:14.6]} 26...
Qe7 {[%clk 0:00:58.9]} 27. Bd2 {[%clk 0:02:08]} 27... Qe2 {[%clk 0:00:51.7]} 28.
Qxe2 {[%clk 0:02:04.7]} 28... Rxe2 {[%clk 0:00:52.6]} 29. Rxb7 {[%clk
0:02:04.9]} 29... Rd8 {[%clk 0:00:42.4]} 30. Be1 {[%clk 0:02:04.3]} 30... Kg6
{[%clk 0:00:39.6]} 31. Bh4 {[%clk 0:02:03.8]} 1-0

[Event "Early-Titled-Tuesday-Blitz-October-24-2023"]
[Site "Chess.com"]
[Date "2023.10.24"]
[Round "3"]
[White "OparinGrigoriy"]
[Black "attack2mateU"]
[Result "1-0"]
[WhiteElo "2983"]
[BlackElo "2721"]
[TimeControl "180+1"]
[EndTime "8:25:07 PDT"]
[Termination "OparinGrigoriy won by resignation"]

1. g3 {[%clk 0:03:00.9]} 1... c5 {[%clk 0:02:56.2]} 2. Bg2 {[%clk 0:03:00.8]}
2... d5 {[%clk 0:02:56.3]} 3. c4 {[%clk 0:03:01]} 3... d4 {[%clk 0:02:56.3]} 4.
Nf3 {[%clk 0:03:00.6]} 4... Nc6 {[%clk 0:02:56.3]} 5. e3 {[%clk 0:02:59]} 5...
e5 {[%clk 0:02:56.4]} 6. O-O {[%clk 0:02:55.1]} 6... Nf6 {[%clk 0:02:54.3]} 7.
b4 {[%clk 0:02:53.2]} 7... cxb4 {[%clk 0:02:49.9]} 8. a3 {[%clk 0:02:52.8]} 8...
dxe3 {[%clk 0:02:24.9]} 9. fxe3 {[%clk 0:02:48.9]} 9... bxa3 {[%clk 0:02:11]}
10. Nxa3 {[%clk 0:02:49.8]} 10... Bc5 {[%clk 0:01:55.3]} 11. Bb2 {[%clk
0:02:49.7]} 11... Bg4 {[%clk 0:01:53.6]} 12. Qc2 {[%clk 0:02:40.7]} 12... Bxf3
{[%clk 0:01:52.4]} 13. Rxf3 {[%clk 0:02:39.2]} 13... O-O {[%clk 0:01:49.6]} 14.
Raf1 {[%clk 0:02:39.7]} 14... Nb4 {[%clk 0:01:49.6]} 15. Qb3 {[%clk 0:02:31.4]}
15... Nd3 {[%clk 0:01:49.5]} 16. Rxf6 {[%clk 0:02:25.6]} 16... gxf6 {[%clk
0:01:49.3]} 17. Bc3 {[%clk 0:02:26.3]} 17... a5 {[%clk 0:01:26.4]} 18. Nb5
{[%clk 0:02:22.5]} 18... a4 {[%clk 0:01:26.5]} 19. Qc2 {[%clk 0:02:22.4]} 19...
Qd7 {[%clk 0:00:51.6]} 20. Be4 {[%clk 0:02:09.5]} 20... Rfd8 {[%clk 0:00:51.4]}
21. Bf5 {[%clk 0:02:09.9]} 21... Qxf5 {[%clk 0:00:12.7]} 22. Rxf5 {[%clk
0:02:09.5]} 22... a3 {[%clk 0:00:13.6]} 23. Rxf6 {[%clk 0:02:06.6]} 23... a2
{[%clk 0:00:13.8]} 24. Rf1 {[%clk 0:02:07.2]} 24... Bb4 {[%clk 0:00:10.5]} 25.
Ba1 {[%clk 0:02:02.3]} 1-0

[Event "Early-Titled-Tuesday-Blitz-October-24-2023"]
[Site "Chess.com"]
[Date "2023.10.24"]
[Round "3"]
[White "OLDTERMINATOR"]
[Black "aranibos"]
[Result "0-1"]
[WhiteElo "1697"]
[BlackElo "2292"]
[TimeControl "180+1"]
[EndTime "8:25:08 PDT"]
[Termination "aranibos won on time"]

1. e4 {[%clk 0:03:00.9]} 1... g6 {[%clk 0:02:59.6]} 2. d4 {[%clk 0:02:59.7]}
2... Bg7 {[%clk 0:03:00.2]} 3. Nc3 {[%clk 0:02:59.8]} 3... d6 {[%clk 0:03:00.8]}
4. Be3 {[%clk 0:02:59.9]} 4... a6 {[%clk 0:03:01.4]} 5. Qd2 {[%clk 0:02:59.8]}
5... Nd7 {[%clk 0:03:01.1]} 6. f3 {[%clk 0:02:59.9]} 6... b5 {[%clk 0:03:01.1]}
7. h4 {[%clk 0:02:47.7]} 7... h6 {[%clk 0:02:59.8]} 8. a3 {[%clk 0:02:37.3]}
8... Bb7 {[%clk 0:03:00.1]} 9. g4 {[%clk 0:02:23]} 9... c5 {[%clk 0:03:00.4]}
10. Be2 {[%clk 0:01:44.8]} 10... cxd4 {[%clk 0:02:56.1]} 11. Bxd4 {[%clk
0:01:43.4]} 11... Ngf6 {[%clk 0:02:56.8]} 12. Rh3 {[%clk 0:01:19.7]} 12... Rc8
{[%clk 0:02:56.7]} 13. g5 {[%clk 0:01:17.3]} 13... hxg5 {[%clk 0:02:39.4]} 14.
hxg5 {[%clk 0:01:16.3]} 14... Rxh3 {[%clk 0:02:28.6]} 15. Nxh3 {[%clk
0:01:15.5]} 15... Nh5 {[%clk 0:02:23.6]} 16. Bxg7 {[%clk 0:00:18.8]} 16... Nxg7
{[%clk 0:02:22.8]} 17. O-O-O {[%clk 0:00:17]} 17... Qb6 {[%clk 0:02:14.5]} 18.
Nd5 {[%clk 0:00:13.5]} 18... Bxd5 {[%clk 0:02:12.9]} 19. exd5 {[%clk 0:00:07.5]}
19... Nf5 {[%clk 0:02:12.4]} 20. Nf4 {[%clk 0:00:05.2]} 20... Qe3 {[%clk
0:02:04.9]} 21. Rh1 {[%clk 0:00:03.2]} 21... Nf8 {[%clk 0:01:55.8]} 0-1

[Event "Early-Titled-Tuesday-Blitz-October-24-2023"]
[Site "Chess.com"]
[Date "2023.10.24"]
[Round "3"]
[White "draksbg"]
[Black "mind1mover"]
[Result "1-0"]
[WhiteElo "2628"]
[BlackElo "2806"]
[TimeControl "180+1"]
[EndTime "8:25:09 PDT"]
[Termination "draksbg won on time"]

1. e4 {[%clk 0:02:59.1]} 1... Nc6 {[%clk 0:02:59.7]} 2. d3 {[%clk 0:02:55.4]}
2... g6 {[%clk 0:02:55.9]} 3. g3 {[%clk 0:02:55.2]} 3... h5 {[%clk 0:02:49.9]}
4. h3 {[%clk 0:02:53.9]} 4... d5 {[%clk 0:02:48.7]} 5. exd5 {[%clk 0:02:50.6]}
5... Qxd5 {[%clk 0:02:49.3]} 6. Nf3 {[%clk 0:02:51]} 6... Nd4 {[%clk 0:02:43]}
7. Bg2 {[%clk 0:02:47.6]} 7... Qe6+ {[%clk 0:02:42.9]} 8. Kf1 {[%clk 0:02:44.6]}
8... Bg7 {[%clk 0:02:34.9]} 9. Nc3 {[%clk 0:02:43.5]} 9... c6 {[%clk 0:02:23.4]}
10. Be3 {[%clk 0:02:34.4]} 10... Nf5 {[%clk 0:02:21.6]} 11. Bf4 {[%clk
0:02:33.5]} 11... Nf6 {[%clk 0:02:20.1]} 12. Qd2 {[%clk 0:02:27.3]} 12... Qd7
{[%clk 0:01:58.2]} 13. Ne5 {[%clk 0:02:26.2]} 13... Qd8 {[%clk 0:01:58.4]} 14.
Re1 {[%clk 0:02:26.6]} 14... Nd5 {[%clk 0:01:49.8]} 15. Bg5 {[%clk 0:02:22.2]}
15... Nxc3 {[%clk 0:01:08.2]} 16. bxc3 {[%clk 0:02:23.1]} 16... Qa5 {[%clk
0:00:56.9]} 17. d4 {[%clk 0:02:13.4]} 17... Be6 {[%clk 0:00:55.9]} 18. g4 {[%clk
0:02:12.8]} 18... hxg4 {[%clk 0:00:53.4]} 19. hxg4 {[%clk 0:02:13.7]} 19...
Rxh1+ {[%clk 0:00:53.8]} 20. Bxh1 {[%clk 0:02:14.6]} 20... Nd6 {[%clk
0:00:48.1]} 21. Nxg6 {[%clk 0:02:14.1]} 21... O-O-O {[%clk 0:00:14]} 22. Nxe7+
{[%clk 0:02:14]} 22... Kb8 {[%clk 0:00:14.5]} 23. Bxc6 {[%clk 0:02:07.8]} 23...
bxc6 {[%clk 0:00:15.4]} 24. Nxc6+ {[%clk 0:02:08.5]} 1-0

[Event "Early-Titled-Tuesday-Blitz-October-24-2023"]
[Site "Chess.com"]
[Date "2023.10.24"]
[Round "3"]
[White "cristiano78"]
[Black "Zhbugnoimt"]
[Result "0-1"]
[WhiteElo "2243"]
[BlackElo "2563"]
[TimeControl "180+1"]
[EndTime "8:25:14 PDT"]
[Termination "Zhbugnoimt won by resignation"]

1. d4 {[%clk 0:03:00.2]} 1... Nf6 {[%clk 0:02:59.4]} 2. c4 {[%clk 0:03:00.7]}
2... e6 {[%clk 0:02:59.8]} 3. Nf3 {[%clk 0:03:00.8]} 3... d5 {[%clk 0:03:00.2]}
4. Nc3 {[%clk 0:03:00.6]} 4... Bb4 {[%clk 0:03:00.8]} 5. Bg5 {[%clk 0:03:00.5]}
5... dxc4 {[%clk 0:02:59]} 6. e4 {[%clk 0:02:59.7]} 6... c5 {[%clk 0:02:59.6]}
7. e5 {[%clk 0:02:59.1]} 7... cxd4 {[%clk 0:03:00.1]} 8. Qxd4 {[%clk 0:02:56.1]}
8... Qxd4 {[%clk 0:02:54.1]} 9. Nxd4 {[%clk 0:02:55.3]} 9... Bxc3+ {[%clk
0:02:24.5]} 10. bxc3 {[%clk 0:02:53.9]} 10... Ne4 {[%clk 0:02:25.4]} 11. Bd2
{[%clk 0:02:53.2]} 11... Nxd2 {[%clk 0:02:14.1]} 12. Kxd2 {[%clk 0:02:54.1]}
12... Nd7 {[%clk 0:02:14.4]} 13. f4 {[%clk 0:02:52.3]} 13... Nb6 {[%clk
0:02:13.2]} 14. Nb5 {[%clk 0:02:51.5]} 14... Ke7 {[%clk 0:02:07.7]} 15. Nd6
{[%clk 0:02:50]} 15... f6 {[%clk 0:01:55.5]} 16. Nxc4 {[%clk 0:02:44.7]} 16...
Nxc4+ {[%clk 0:01:52.1]} 17. Bxc4 {[%clk 0:02:44.2]} 17... fxe5 {[%clk
0:01:51.6]} 18. fxe5 {[%clk 0:02:44.4]} 18... Bd7 {[%clk 0:01:52.5]} 19. Ke3
{[%clk 0:02:43.7]} 19... Rac8 {[%clk 0:01:52.2]} 20. Bd3 {[%clk 0:02:33.3]}
20... Rxc3 {[%clk 0:01:51.1]} 21. Rhc1 {[%clk 0:02:32.8]} 21... Rxc1 {[%clk
0:01:46.8]} 22. Rxc1 {[%clk 0:02:32.8]} 22... Bc6 {[%clk 0:01:47.7]} 23. g3
{[%clk 0:02:32.2]} 23... h6 {[%clk 0:01:45]} 24. Bg6 {[%clk 0:02:31.7]} 24...
Rf8 {[%clk 0:01:44.3]} 25. Be4 {[%clk 0:02:25.8]} 25... Bxe4 {[%clk 0:01:27.2]}
26. Kxe4 {[%clk 0:02:26.7]} 26... Kd7 {[%clk 0:01:26.2]} 27. Rd1+ {[%clk
0:02:22.8]} 27... Kc7 {[%clk 0:01:26.1]} 28. Rd6 {[%clk 0:02:18.7]} 28... Rf2
{[%clk 0:01:24.7]} 29. Rxe6 {[%clk 0:02:18.1]} 29... Rxh2 {[%clk 0:01:23.6]} 30.
Re7+ {[%clk 0:02:17.9]} 30... Kc6 {[%clk 0:01:23.9]} 31. Rxg7 {[%clk 0:02:17.8]}
31... Rxa2 {[%clk 0:01:24.4]} 32. e6 {[%clk 0:02:18]} 32... Re2+ {[%clk
0:01:18.7]} 33. Kf5 {[%clk 0:02:17.6]} 33... a5 {[%clk 0:01:19.4]} 34. Rh7
{[%clk 0:02:10.6]} 34... a4 {[%clk 0:01:16.6]} 35. Rxh6 {[%clk 0:02:10.2]} 35...
a3 {[%clk 0:01:14.6]} 36. Rh8 {[%clk 0:02:07.4]} 36... b5 {[%clk 0:01:11.1]} 37.
g4 {[%clk 0:02:05]} 37... b4 {[%clk 0:01:11.3]} 38. Kf6 {[%clk 0:02:04.6]} 38...
a2 {[%clk 0:01:08.5]} 39. Ra8 {[%clk 0:02:03.4]} 39... b3 {[%clk 0:01:09]} 40.
e7 {[%clk 0:02:02.4]} 40... b2 {[%clk 0:01:06.9]} 41. Rxa2 {[%clk 0:01:59.1]}
41... b1=Q {[%clk 0:01:01.8]} 42. Rxe2 {[%clk 0:01:58.6]} 42... Qf1+ {[%clk
0:01:02.4]} 43. Kg7 {[%clk 0:01:47.7]} 43... Qxe2 {[%clk 0:01:01.6]} 44. Kf8
{[%clk 0:01:48]} 44... Kd7 {[%clk 0:01:01.7]} 0-1

[Event "Early-Titled-Tuesday-Blitz-October-24-2023"]
[Site "Chess.com"]
[Date "2023.10.24"]
[Round "3"]
[White "HanSchut"]
[Black "Semetey"]
[Result "0-1"]
[WhiteElo "2277"]
[BlackElo "2535"]
[TimeControl "180+1"]
[EndTime "8:25:15 PDT"]
[Termination "Semetey won by resignation"]

1. e4 {[%clk 0:02:56.8]} 1... a6 {[%clk 0:03:00.9]} 2. d4 {[%clk 0:02:56.6]}
2... c6 {[%clk 0:03:00.8]} 3. Bd3 {[%clk 0:02:57]} 3... d5 {[%clk 0:03:01.2]} 4.
Qe2 {[%clk 0:02:57.2]} 4... dxe4 {[%clk 0:02:59.5]} 5. Bxe4 {[%clk 0:02:56.9]}
5... Qxd4 {[%clk 0:02:58.3]} 6. Nf3 {[%clk 0:02:55.1]} 6... Qd8 {[%clk 0:02:58]}
7. O-O {[%clk 0:02:54.1]} 7... Nf6 {[%clk 0:02:58]} 8. Rd1 {[%clk 0:02:54.2]}
8... Qc7 {[%clk 0:02:56.7]} 9. Nc3 {[%clk 0:02:49.1]} 9... Bg4 {[%clk
0:02:56.3]} 10. h3 {[%clk 0:02:47.4]} 10... Bh5 {[%clk 0:02:55.8]} 11. Bg5
{[%clk 0:02:35.9]} 11... Nbd7 {[%clk 0:02:54.6]} 12. Bf5 {[%clk 0:02:03.6]}
12... e6 {[%clk 0:02:42.7]} 13. Bxe6 {[%clk 0:01:57.7]} 13... fxe6 {[%clk
0:02:42.9]} 14. Qxe6+ {[%clk 0:01:58.6]} 14... Be7 {[%clk 0:02:43.3]} 15. Re1
{[%clk 0:01:40.4]} 15... Nf8 {[%clk 0:02:42.9]} 16. Qe3 {[%clk 0:01:30.4]} 16...
Bxf3 {[%clk 0:02:42]} 17. Bf4 {[%clk 0:01:24.7]} 17... Qd7 {[%clk 0:02:32.1]}
18. Qxf3 {[%clk 0:01:24.2]} 18... Ng6 {[%clk 0:02:20.6]} 19. Rad1 {[%clk
0:01:20]} 19... Qf5 {[%clk 0:02:20.4]} 20. Rxe7+ {[%clk 0:00:22.7]} 20... Nxe7
{[%clk 0:02:18.5]} 21. Qe3 {[%clk 0:00:20.2]} 21... O-O {[%clk 0:02:10.4]} 22.
g4 {[%clk 0:00:15.7]} 22... Nxg4 {[%clk 0:02:09.9]} 23. hxg4 {[%clk 0:00:16.2]}
23... Qxf4 {[%clk 0:02:10.2]} 24. Qxe7 {[%clk 0:00:15.4]} 24... Qxf2+ {[%clk
0:02:10.2]} 25. Kh1 {[%clk 0:00:15.6]} 25... Qf3+ {[%clk 0:02:08.1]} 26. Kg1
{[%clk 0:00:14.8]} 26... Qxg4+ {[%clk 0:02:08]} 27. Kh1 {[%clk 0:00:14.4]} 27...
Rae8 {[%clk 0:02:05.2]} 0-1

[Event "Early-Titled-Tuesday-Blitz-October-24-2023"]
[Site "Chess.com"]
[Date "2023.10.24"]
[Round "3"]
[White "Nitzan_Steinberg"]
[Black "lamomiajunior"]
[Result "1-0"]
[WhiteElo "2880"]
[BlackElo "2659"]
[TimeControl "180+1"]
[EndTime "8:25:19 PDT"]
[Termination "Nitzan_Steinberg won by checkmate"]

1. Nf3 {[%clk 0:03:00.9]} 1... d5 {[%clk 0:03:00]} 2. g3 {[%clk 0:02:59.9]} 2...
Nf6 {[%clk 0:03:00.2]} 3. Bg2 {[%clk 0:03:00.3]} 3... c5 {[%clk 0:02:59.1]} 4.
c4 {[%clk 0:02:59.3]} 4... d4 {[%clk 0:02:59.3]} 5. b4 {[%clk 0:02:59.5]} 5...
Nc6 {[%clk 0:02:44.1]} 6. b5 {[%clk 0:02:53.7]} 6... Nb8 {[%clk 0:02:44.5]} 7.
d3 {[%clk 0:02:50.7]} 7... Nbd7 {[%clk 0:02:42.8]} 8. a4 {[%clk 0:02:50.7]} 8...
e5 {[%clk 0:02:43]} 9. O-O {[%clk 0:02:50.8]} 9... Bd6 {[%clk 0:02:43.1]} 10. a5
{[%clk 0:02:51.2]} 10... O-O {[%clk 0:02:43]} 11. a6 {[%clk 0:02:50.6]} 11...
Qc7 {[%clk 0:02:35.2]} 12. Bg5 {[%clk 0:02:40.3]} 12... h6 {[%clk 0:02:33.5]}
13. Bxf6 {[%clk 0:02:40.2]} 13... Nxf6 {[%clk 0:02:34.4]} 14. Nbd2 {[%clk
0:02:30.8]} 14... Rb8 {[%clk 0:02:15.9]} 15. axb7 {[%clk 0:02:30.6]} 15... Rxb7
{[%clk 0:02:16.4]} 16. Qa4 {[%clk 0:02:26.2]} 16... Qb8 {[%clk 0:02:10.7]} 17.
Nb3 {[%clk 0:02:16.7]} 17... Re7 {[%clk 0:02:07.5]} 18. Nfd2 {[%clk 0:02:16.9]}
18... Bf5 {[%clk 0:02:02.6]} 19. Na5 {[%clk 0:02:15.6]} 19... Bd7 {[%clk
0:01:59.2]} 20. Nc6 {[%clk 0:02:13.8]} 20... Bxc6 {[%clk 0:01:59.2]} 21. bxc6
{[%clk 0:02:14.5]} 21... Rfe8 {[%clk 0:01:30.7]} 22. Rfb1 {[%clk 0:02:13.2]}
22... Qc8 {[%clk 0:01:31.2]} 23. Rb7 {[%clk 0:02:11.2]} 23... Qf5 {[%clk
0:01:27.2]} 24. Qxa7 {[%clk 0:02:04.8]} 24... Qh5 {[%clk 0:01:13.6]} 25. Bf3
{[%clk 0:01:57.6]} 25... Qg5 {[%clk 0:01:12]} 26. Ne4 {[%clk 0:01:51.9]} 26...
Nxe4 {[%clk 0:01:12]} 27. Bxe4 {[%clk 0:01:52.8]} 27... f5 {[%clk 0:01:09.6]}
28. Bd5+ {[%clk 0:01:52.8]} 28... Kh8 {[%clk 0:01:10]} 29. Rxe7 {[%clk
0:01:51.9]} 29... Rxe7 {[%clk 0:01:06.4]} 30. Qa8+ {[%clk 0:01:52.1]} 30... Kh7
{[%clk 0:01:06.9]} 31. Qd8 {[%clk 0:01:48.4]} 31... Qf6 {[%clk 0:01:02.6]} 32.
Ra8 {[%clk 0:01:32.8]} 32... e4 {[%clk 0:01:00.6]} 33. Qg8+ {[%clk 0:01:30.7]}
33... Kg6 {[%clk 0:01:00.8]} 34. Rf8 {[%clk 0:01:30.8]} 34... Qg5 {[%clk
0:00:56]} 35. Bf7+ {[%clk 0:01:28.9]} 35... Kf6 {[%clk 0:00:55.6]} 36. Bh5+
{[%clk 0:01:27.7]} 36... Ke5 {[%clk 0:00:55.2]} 37. Qd5# {[%clk 0:01:27.8]} 1-0